Cogmind - Beta 16 @@@ ROGUE MODE // 2026.01.30 @ 00:39:07 Player: Artackni Result: Destroyed by Alpha 7 with Heavy Quantum Rifle Performance ------------- Evolutions (8) 4000 Regions Visited (27) 5400 Robots Destroyed (523) 2615 Value Destroyed (27749) 27749 Prototype IDs (60) 1200 Alien Tech Used (5) 1000 Bonus (22956) 22956 TOTAL SCORE: 64920 Bonus ------- Triggered High Security 1000 High Alert Combat Kills 11201 Follower Combat Kills 331 Network Hubs Disabled 400 Met Data Miner 300 Met Warlord at Base 500 MAIN.C Attacked Warlord 500 Warlord Defense Kills 3406 Met R17 at Cetus 500 Met R17 at Research 2000 Met Warlord at Research 2000 Scanned by Researcher 1000 Pursued by Intercept 500 Friendly Fire -682 Cogmind --------- Core Integrity 0/1450 Matter 126/300 Energy 98/100 System Corruption 6% Temperature Cool (9) Movement Core (50) Location -2/Section 7 Parts ------- > --- POWER (2) -------- (None) > --- PROPULSION (5) --- (None) > --- UTILITY (12) ----- (None) > --- WEAPON (4) ------- (None) > --- INVENTORY (5) ---- Quantum Capacitor Spacefold Activator Core Cannon Peak State ------------ > --- POWER ------------ Multi-Quantum Reactor > --- PROPULSION ------- Treaded HC-Gravjet Exoskeleton > --- UTILITY ---------- Armored Scrap Engine High-capacity Storage Unit Advanced Visual Processing Unit Advanced Sensor Array Experimental Signal Interpreter Experimental Targeting Computer Advanced Kinecellerator Experimental Weapon Shielding Advanced Focal Shield Thermal Barrier Spacefold Activator > --- WEAPON ----------- Neutron Missile Launcher Hpw. Accelerated Graviton Construct/C > --- INVENTORY -------- Centrium Leg Advanced Cryofiber Web Advanced Cooling System Advanced Cooling System Experimental Energy Well Experimental Core Analyzer Advanced Particle Charger Advanced Particle Charger Quantum Capacitor Quantum Capacitor Graphene Brace Experimental EM Shield Enhanced Nova Cannon Core Cannon Enhanced Hardcell Cannon Sigix Terminator [Rating: 205] Favorites ----------- Power Constructs Engine Ion Engine Power Core Light Nuclear Core Reactor Constructs Propulsion Constructs Treads Constructs Leg Aluminum Leg Wheel Compact Wheel Hover Unit Combat Airjet Utility Armored Scrap Engine Device Armored Scrap Engine Storage High-capacity Storage Unit Processor Experimental Core Analyzer Hackware Improved System Shield Protection Reflective Plating Artifact Spacefold Activator Weapon Constructs Energy Gun Particle Gun Energy Cannon Cooled Phase Cannon Ballistic Gun Enhanced Autogun Ballistic Cannon Constructs Launcher Micro-nuke Launcher Impact Weapon Great Maul Slashing Weapon Katana Build | -11 -10 -10 -8 -8 -8 -6 -6 -6 -6 -6 -6 -5 -5 -5 -5 -5 -4 -4 -4 -4 -4 -4 -3 -3 -2 -2 -2 ------- Run | Yrd Mat Sub Mat Sto Rec Fac Was Fac Low Low Dat Pro Fac Upp Upp War Pro Fac Ext Cet Arc Hub Res Tes Res Qua Sec Slots Evolved 16 | . . . 4 . . 4 . . . . . . 2 . . . . 2 . . . . 2 . 2 . . Power 1 | . . . . . . . . . . . . . . . . . . 1 . . . . . . . . . Propulsion 3 | . . . 1 . . 1 . . . . . . 1 . . . . . . . . . . . . . . Utility 10 | . . . 2 . . 3 . . . . . . 1 . . . . 1 . . . . 1 . 2 . . Weapon 2 | . . . 1 . . . . . . . . . . . . . . . . . . . 1 . . . . Parts Attached 160 | 7 8 . 23 12 3 13 . . 1 . . . 6 1 1 15 1 3 4 3 . 4 19 13 8 5 10 Power 12 | 1 2 . 3 2 . 1 . . . . . . . . . 2 . . . . . . . 1 . . . Engine 2 | 1 1 . . . . . . . . . . . . . . . . . . . . . . . . . . Core 7 | . 1 . 3 2 . 1 . . . . . . . . . . . . . . . . . . . . . Reactor 3 | . . . . . . . . . . . . . . . . 2 . . . . . . . 1 . . . Propulsion 25 | 2 4 . 6 3 . . . . . . . . 1 . . 3 . . 1 . . . 3 . 1 . 1 Treads 8 | . 2 . 3 3 . . . . . . . . . . . . . . . . . . . . . . . Leg 13 | 2 2 . . . . . . . . . . . . . . 3 . . 1 . . . 3 . 1 . 1 Wheel 3 | . . . 3 . . . . . . . . . . . . . . . . . . . . . . . . Hover 1 | . . . . . . . . . . . . . 1 . . . . . . . . . . . . . . Flight . | . . . . . . . . . . . . . . . . . . . . . . . . . . . . Utility 87 | 2 . . 6 1 1 10 . . 1 . . . 5 1 1 9 1 3 3 3 . 4 14 8 6 3 5 Device 47 | 1 . . 1 1 1 5 . . . . . . 3 . 1 3 1 2 3 3 . 3 8 4 4 1 2 Storage 8 | 1 . . 2 . . 1 . . . . . . 1 . . . . . . . . . 1 2 . . . Processor 14 | . . . . . . 1 . . . . . . . . . 2 . 1 . . . . 4 1 2 1 2 Hackware 2 | . . . . . . 1 . . . . . . . . . 1 . . . . . . . . . . . Protection 15 | . . . 3 . . 2 . . 1 . . . 1 1 . 3 . . . . . 1 1 1 . 1 . Artifact 1 | . . . . . . . . . . . . . . . . . . . . . . . . . . . 1 Weapon 36 | 2 2 . 8 6 2 2 . . . . . . . . . 1 . . . . . . 2 4 1 2 4 Energy Gun 9 | 1 2 . . 2 1 1 . . . . . . . . . . . . . . . . . 1 . 1 . Energy Cannon 4 | . . . . . . . . . . . . . . . . . . . . . . . 1 2 . . 1 Ballistic Gun 8 | 1 . . 1 3 1 . . . . . . . . . . 1 . . . . . . . 1 . . . Ballistic Cannon 7 | . . . 4 . . . . . . . . . . . . . . . . . . . 1 . . 1 1 Launcher 3 | . . . . . . . . . . . . . . . . . . . . . . . . . 1 . 2 Special Weapon . | . . . . . . . . . . . . . . . . . . . . . . . . . . . . Impact Weapon 4 | . . . 2 1 . 1 . . . . . . . . . . . . . . . . . . . . . Slashing Weapon 1 | . . . 1 . . . . . . . . . . . . . . . . . . . . . . . . Piercing Weapon . | . . . . . . . . . . . . . . . . . . . . . . . . . . . . Special Melee Weapon . | . . . . . . . . . . . . . . . . . . . . . . . . . . . . Unidentified Prototypes 40 | . . . . 3 3 2 . . . . . . . . . 5 . . 1 . . . 6 5 3 5 7 Parts Lost 39 | . . . 12 1 . 1 . . . . . . 1 . . 6 . 1 1 . . . 1 3 . . 12 Power 8 | . . . 1 1 . 1 . . . . . . . . . 2 . . . . . . . 1 . . 2 Propulsion 8 | . . . 5 . . . . . . . . . . . . 1 . . . . . . . . . . 2 Utility 16 | . . . 2 . . . . . . . . . 1 . . 2 . 1 1 . . . 1 2 . . 6 Weapon 7 | . . . 4 . . . . . . . . . . . . 1 . . . . . . . . . . 2 Highest Loss Streak 10 | . . . 6 1 . 1 . . . . . . 1 . . 6 . 1 1 . . . 1 2 . . 10 To Critical Strikes 4 | . . . . . . . . . . . . . . . . 1 . . . . . . . . . . 3 Average Backups 15 | 2 7 8 8 14 12 15 18 17 17 17 17 17 17 17 15 17 17 17 18 19 19 19 18 16 18 17 15 Power 1 | . 1 2 3 3 1 . 1 1 1 1 1 1 . 1 1 . 1 . . . . . . 1 1 . . Propulsion 1 | . 1 2 1 1 . 1 2 1 2 2 2 2 1 1 1 1 . . 1 2 2 1 1 2 2 1 . Utility 8 | . . 1 1 2 3 6 8 8 8 8 8 8 8 9 9 11 9 10 11 12 11 11 13 11 9 10 10 Weapon 4 | 1 3 3 2 5 6 5 5 4 4 4 4 4 4 4 3 3 5 5 4 4 5 5 1 1 4 4 3 Tool/Special . | . . . . . . . . . . . . . . . . . . . . . . . . . . . . Unused Backups 103 | . 4 . 3 1 2 14 . 7 1 . . 1 9 2 . 9 1 . 1 3 . 6 21 3 5 6 4 Power 11 | . 1 . 1 . 1 2 . . . . . . 1 . . 1 . . . . . . 1 . 2 1 . Propulsion 22 | . 2 . 1 . . 4 . 1 . . . . 1 . . 2 1 . . . . 2 5 . 2 1 . Utility 24 | . . . . . . 4 . 2 1 . . . 2 . . 2 . . . 1 . . 7 2 . 1 2 Weapon 43 | . 1 . 1 1 1 4 . 4 . . . 1 3 2 . 4 . . 1 2 . 4 7 1 1 3 2 Tool/Special 3 | . . . . . . . . . . . . . 2 . . . . . . . . . 1 . . . . Average Slot Usage (%) 64 | . 99 100 86 99 78 59 60 60 60 60 60 60 57 58 58 55 52 53 51 52 57 56 54 58 60 57 58 Core 2 | . 5 . 6 9 8 2 . . . . . . 2 5 5 3 . . . . . . . . . . . Reactor 2 | . . . . . . 2 6 6 6 6 6 6 2 . . 1 5 5 4 5 5 5 4 5 4 4 3 Treads 4 | . 11 28 20 13 18 1 . . . . . . . . . . 1 5 2 . . . . . . . . Leg 2 | . 16 . . . . 3 . . . . . . 2 5 5 5 4 . . . . . . . 2 4 2 Hover 1 | . . . . . 1 1 6 6 6 6 6 6 2 . . . . . 2 5 5 5 4 4 1 . . Device 20 | . 14 14 10 6 15 18 26 26 26 26 26 26 24 23 23 20 20 20 14 18 31 26 23 25 25 24 22 Storage 6 | . 14 14 15 9 9 6 6 6 6 6 6 6 5 5 5 5 5 5 5 5 5 5 4 4 4 4 3 Processor 4 | . . . . . . 1 . . . . . . . . . 3 5 9 10 7 5 5 8 8 12 13 12 Protection 3 | . . . 1 20 4 2 6 6 6 6 6 6 8 11 11 4 2 2 5 4 . 4 1 . . 1 2 Energy Gun 1 | . 14 14 . . 2 1 . . . . . . . . . . . . . . . . . . . . . Energy Cannon 1 | . . . . . . 1 6 6 6 6 6 6 1 . . 1 . . . . . . 2 2 4 3 . Ballistic Gun 2 | . 14 14 2 20 9 2 . . . . . . . . . . . . . . . . . . . . . Ballistic Cannon 2 | . . . 18 . . 1 . . . . . . 3 5 5 3 5 5 5 5 5 5 1 3 . . 4 Impact Weapon 1 | . . . 4 4 7 2 . . . . . . . . . . . . . . . . . . . . . Peak Build Rating 205 | 7 11 9 23 32 44 86 84 85 87 86 86 86 108 108 109 135 129 130 137 139 141 141 165 169 188 197 205 Average Rating 104 | 4 9 9 17 30 37 71 84 84 85 86 86 86 101 107 106 116 121 127 129 136 140 139 153 159 183 184 192 On Entrance 95 | . 7 9 9 23 31 43 84 84 85 86 86 86 86 108 106 109 129 119 127 137 139 141 139 154 169 187 189 Avg Prop Armor Cover (%) 10 | . . . 10 10 9 . . . . . . . . . . . . . . . . . . . . . 30 Naked Turns 6 | . . . . . . . . . . . . . . . . . . . . . . . . . . . 6 Heaviest Build 131 | 14 16 16 54 48 48 75 70 70 74 74 74 74 81 76 76 96 96 108 124 131 113 119 131 114 114 108 107 Greatest Support 241 | 20 40 40 60 60 60 84 84 84 84 84 84 84 108 108 108 111 142 142 142 142 142 142 142 142 162 162 241 Greatest Overweight (x) 4 | . . . 2 4 1 . . . . . . . . . . 1 1 . . . . . . . 1 . . Average Overweight (x) . | . . . . 1 . . . . . . . . . . . . . . . . . . . . . . . Largest Inventory Capacity 20 | 8 8 8 15 15 15 20 20 20 20 20 20 20 20 20 20 20 20 20 20 20 20 20 20 20 20 20 20 Average Capacity 17 | 7 8 8 9 15 15 18 20 20 20 20 20 20 20 20 20 20 20 20 20 20 20 20 20 20 20 20 19 Most Carried 20 | 4 8 8 11 15 15 20 20 20 20 20 20 20 20 20 18 20 20 19 20 20 20 20 20 20 20 20 20 Average Carried 16 | 2 7 8 8 14 12 16 20 19 19 20 20 20 19 19 17 19 18 17 19 19 19 19 19 19 19 19 19 Final Capacity 20 | 8 8 8 15 15 15 20 20 20 20 20 20 20 20 20 20 20 20 20 20 20 20 20 20 20 20 20 5 Final Carried 20 | 3 8 8 11 15 12 20 20 20 20 20 20 20 20 17 18 19 18 17 20 18 20 19 19 20 20 20 5 Scrap Engine Consumption 160 | . . . . . 32 24 1 3 1 1 . . 5 3 1 19 3 2 9 8 . 4 23 2 11 6 2 Constructs Created 7 | . . . . . 4 2 . . . . . . . . . 1 . . . . . . . . . . . Constructs Modified 50 | . . . . . 5 7 . . . . . . 3 . 1 4 2 . 4 4 . 2 7 2 5 3 1 Class Distribution -------------------- 59% | Construct 16% | Scavenger-Construct 9% | Mutant 5% | Scavenger-Mutant 3% | Scavenger-Tank Dominant Class ---------------- Mutant | -10/Materials Mutant | -10/Subcaves Gunner | -8/Materials Scavenger-Tank | -8/Storage Construct | -8/Recycling Construct | -6/Factory Construct | -6/Waste Construct | -6/Factory Construct | -6/Lower Caves Construct | -6/Lower Caves Construct | -6/Data Miner Construct | -5/Proximity Caves Construct | -5/Factory Construct | -5/Upper Caves Construct | -5/Upper Caves Construct | -5/Warlord Construct | -4/Proximity Caves Construct | -4/Factory Construct | -4/Extension Construct | -4/Cetus Construct | -4/Archives Construct | -4/Hub_04(d) Construct | -3/Research Construct | -3/Testing Scavenger-Construct | -2/Research Construct | -2/Quarantine Scavenger-Construct | -2/Section 7 Resources | -11 -10 -10 -8 -8 -8 -6 -6 -6 -6 -6 -6 -5 -5 -5 -5 -5 -4 -4 -4 -4 -4 -4 -3 -3 -2 -2 -2 ----------- Run | Yrd Mat Sub Mat Sto Rec Fac Was Fac Low Low Dat Pro Fac Upp Upp War Pro Fac Ext Cet Arc Hub Res Tes Res Qua Sec Matter Collected 12521 | 244 247 21 843 433 336 465 . 205 128 42 . 71 556 . 170 478 162 251 517 184 . 353 2009 949 1260 1652 945 Remotely . | . . . . . . . . . . . . . . . . . . . . . . . . . . . . Salvage Created 28568 | 52 664 55 981 460 317 1954 . 376 86 85 . 285 1926 75 193 1095 419 1150 1429 502 269 1356 2306 3331 2614 4325 2263 Parts 1218 | 6 39 3 48 30 12 74 . 13 6 7 . 10 86 6 13 41 22 53 58 22 13 74 105 140 99 167 71 Haulers Intercepted 19 | . 1 . 3 2 . . . 1 . . . . 2 . . . . 1 1 . . 2 1 . 2 1 2 Recyclers Shooed 4 | . . . 2 . . 2 . . . . . . . . . . . . . . . . . . . . . Parts Field Recycled . | . . . . . . . . . . . . . . . . . . . . . . . . . . . . Retrieved Matter . | . . . . . . . . . . . . . . . . . . . . . . . . . . . . Parts Self-Destructed 65 | . . 2 . . . . . . 6 7 . 10 . 6 13 . 21 . . . . . . . . . . Prevented . | . . . . . . . . . . . . . . . . . . . . . . . . . . . . Parts Restored . | . . . . . . . . . . . . . . . . . . . . . . . . . . . . Kills | -11 -10 -10 -8 -8 -8 -6 -6 -6 -6 -6 -6 -5 -5 -5 -5 -5 -4 -4 -4 -4 -4 -4 -3 -3 -2 -2 -2 ------- Run | Yrd Mat Sub Mat Sto Rec Fac Was Fac Low Low Dat Pro Fac Upp Upp War Pro Fac Ext Cet Arc Hub Res Tes Res Qua Sec Combat Hostiles Destroyed 413 | . 13 1 23 10 6 28 . 6 5 2 . 7 34 1 6 25 8 23 17 7 3 14 31 38 30 44 31 Melee 4 | . . . 1 1 . 2 . . . . . . . . . . . . . . . . . . . . . Guns 35 | . 13 1 . 9 6 6 . . . . . . . . . . . . . . . . . . . . . Cannons 348 | . . . 18 . . 15 . 6 4 2 . 7 33 1 6 24 8 22 17 7 3 13 30 36 28 44 24 AOE 10 | . . . 1 . . . . . . . . . 1 . . . . 1 . . . . . . . . 7 Classes Destroyed 32 | 1 4 1 5 . . 4 . . 1 . . . 1 1 . 5 . . 1 1 . 1 1 1 1 3 . Worker 20 | . . . 4 . . 3 . . . . . . 2 . . . . . . . . . 1 . 1 3 6 Builder 15 | . 1 . . . 1 1 . . . . . . 1 . . . . 1 . . . 2 . 1 . 4 3 Tunneler 4 | 2 . . . . . . . . . . . . 1 . . . . . . . . . . . 1 . . Hauler 19 | . 1 . 3 2 . . . 1 . . . . 2 . . . . 1 1 . . 2 1 . 2 1 2 Recycler 21 | . . . 5 . . 3 . . . . . . 1 . . . . 1 2 . . 1 . 1 . 4 3 Carrier 1 | . . . . . . . . . . . . . . . . . . . . . . . 1 . . . . Mechanic 4 | . 1 . . . . . . . . . . . 1 . . . . . . . . . . 1 . . 1 Operator 6 | . . . . . . 3 . . . . . . 1 . . . . . . . . . 1 . . . 1 Watcher 10 | . . . . . . . . . . . . . . . . . . . . 1 . 1 . 2 2 2 2 Swarmer 88 | . . . 9 4 . 4 . 3 3 . . 3 18 . 5 5 4 14 3 . . . 8 . 5 . . Cutter 2 | . . . . . . . . . . . . . . . . . . . . . . 2 . . . . . Saboteur 5 | . . . . . . . . . . . . . . . . . . . 1 . . . . 1 . 3 . Grunt 141 | . 13 . 9 3 . 12 . . . . . 4 6 . . 2 2 4 6 . . 2 8 25 11 21 13 Brawler 13 | . . . . . . 1 . . . . . . 2 . . 2 . . 1 . . . 1 2 . 2 2 Duelist 13 | . . . . . . . . . . . . . 2 . . 1 1 . 1 . . . . 3 1 3 1 Protector 3 | . . . . . . . . . . . . . . . . 1 . . . . . . . . . 1 1 Researcher 9 | . . . . . . . . . . . . . . . . . . . . . . . . 4 . . 5 Sentry 36 | . . . 3 3 2 4 . 1 . . . . 2 . . . . . 3 . 3 3 4 2 1 . 5 Demolisher 6 | . . . . . . . . . . . . . . . . 2 . . . . . . 1 . 3 . . Hunter 23 | . . . 2 . . 2 . . . . . . 2 . . 5 . 2 . . . 2 3 . 1 1 3 Programmer 37 | . . . . . . 4 . 2 . 2 . . 2 . . 2 . 2 . . . 4 . 5 2 8 4 Heavy 2 | . . . . . . 1 . . . . . . . . . . . . . . . 1 . . . . . Q-Series 4 | . . . . . . . . . . . . . . . . . . . . . . . . . . 2 2 Behemoth 8 | . . . . . . . . . . . . . . 1 1 . 1 1 2 . . . 2 . . . . Cetus Guard 7 | . . . . . . . . . . . . . . . . . . . . 7 . . . . . . . Striker 11 | . . . . . . . . . . . . . . . . 3 . . . . . . 4 . 4 . . Executioner 4 | . . . . . . . . . . . . . . . . 2 . . . . . . . . 2 . . Alpha 7 1 | . . . . . . . . . . . . . . . . . . . . . . . . . . 1 . Fortress 1 | . . . . . . . . . . . . . . . . . . . . . . . . . . 1 . Subdweller 5 | . . 1 . . 4 . . . . . . . . . . . . . . . . . . . . . . Tinkerer 1 | . . . . . . . . . . . . . . . . 1 . . . . . . . . . . . Thief 2 | . . . . . . . . . 2 . . . . . . . . . . . . . . . . . . Guerrilla 1 | . . . . . . . . . . . . . . . . . . . . . . . . . . 1 . Dragon 1 | . . . . . . . . . . . . . . . . . . . . . . . . . 1 . . Best Kill Streak 30 | 1 3 1 7 4 2 6 . 3 5 1 . 7 18 1 5 6 4 14 7 4 3 6 3 16 9 15 30 Combat Bots Only 15 | . 3 1 4 4 2 5 . 3 5 1 . 7 14 1 5 6 4 12 6 3 3 4 3 15 8 15 9 Max Kills in Single Turn 11 | 1 2 1 2 1 2 2 . 1 2 1 . 2 5 1 1 2 2 3 1 2 1 1 1 2 1 3 11 Gunslinging 1 | . 1 . . . 1 1 . . . . . . . . . . . . . . . . . . . . . Exploded 3 | . . . 1 . . . . . . . . . 1 . . . . 1 . . . . . . . . 3 Melee 1 | . . . 1 1 . 1 . . . . . . . . . . . . . . . . . . . . . Uniques/NPCs Destroyed . | . . . . . . . . . . . . . . . . . . . . . . . . . . . . Combat | -11 -10 -10 -8 -8 -8 -6 -6 -6 -6 -6 -6 -5 -5 -5 -5 -5 -4 -4 -4 -4 -4 -4 -3 -3 -2 -2 -2 -------- Run | Yrd Mat Sub Mat Sto Rec Fac Was Fac Low Low Dat Pro Fac Upp Upp War Pro Fac Ext Cet Arc Hub Res Tes Res Qua Sec Hostile Shots Fired 1977 | . 41 6 210 40 20 180 . 32 11 4 . 12 101 15 30 267 25 91 51 39 3 64 135 66 58 72 404 Missed 618 | . 14 2 55 10 6 63 . 16 2 2 . 6 33 8 12 97 9 26 19 23 2 23 45 19 14 26 86 Hits 1359 | . 27 4 155 30 14 117 . 16 9 2 . 6 68 7 18 170 16 65 32 16 1 41 90 47 44 46 318 Melee 30 | . . . . . . 7 . . 5 . . . 3 . . 6 . . . . . 3 6 . . . . Projectile 1329 | . 27 4 155 30 14 110 . 16 4 2 . 6 65 7 18 164 16 65 32 16 1 38 84 47 44 46 318 AOE 17 | . . . . . . . . . . . . . . . . 7 . . . . . 4 4 . 1 . 1 Critical Strikes 65 | . 1 . 5 . . 4 . . . . . . 3 1 . 7 2 2 2 6 . 7 6 2 . 2 15 Actively Blocked 4 | . . . . . . . . . . . . . . . . . . . . 3 . . . . . . 1 Damage Taken 25400 | . 338 111 2014 339 237 1726 . 172 143 30 . 101 1294 170 294 3687 366 908 631 242 28 1017 1929 827 1083 937 6776 Core 3124 | . 85 28 316 26 22 207 . 15 14 . . 13 154 . . 202 63 56 49 17 . 38 251 78 64 50 1376 Absorbed by Shields 637 | . . . . . . . . . . . . . . . . . . . . . . . 528 109 . . . Reduced by Siege Mode 131 | . . . . . . . . . . . . . . . . . . 3 . . . . . . . . 128 Redirected to Shielding 164 | . . . . 7 . . . . . . . . . . . . . . . . . . . . . 19 138 Ignored by Resistances 2818 | . . . . 26 16 . . 5 . . . . . . . . . 217 93 162 6 6 . . 164 290 1833 Regen/Repaired (Parts) 7813 | . . . . . 42 781 . 131 . . . 19 439 . 365 932 327 . 677 394 . 327 1014 346 951 490 578 Core Remaining (%) 67 | 100 . 54 . . 33 . . . . . . 70 . . . . 58 . . . . 86 . 74 . . . Volleys Fired 1217 | 5 42 7 63 23 19 82 6 13 10 4 . 9 69 8 14 53 19 38 45 24 6 42 167 83 111 163 92 Largest 3 | 2 2 2 3 3 3 2 1 1 1 1 . 1 1 1 1 1 1 1 1 1 1 1 1 2 1 1 2 Hottest 198 | 60 85 85 111 75 75 132 114 114 114 114 . 114 114 92 92 92 76 76 76 146 96 96 78 198 78 97 155 Shots Fired 1413 | 6 84 14 124 69 52 88 5 13 10 4 . 9 68 8 14 53 18 38 45 24 6 42 167 86 111 163 92 Gun 258 | 6 84 14 2 69 52 25 . . . . . . . . . . . . . . . . . 6 . . . Cannon 1151 | . . . 122 . . 63 5 13 10 4 . 9 68 8 14 53 18 38 45 24 6 42 167 80 111 163 88 Launcher 4 | . . . . . . . . . . . . . . . . . . . . . . . . . . . 4 Special . | . . . . . . . . . . . . . . . . . . . . . . . . . . . . Kinetic 874 | 5 42 7 124 69 52 28 . . . . . . . . 5 15 18 38 2 11 6 42 66 4 89 163 88 Thermal 536 | 1 42 7 . . . 60 5 13 10 4 . 9 68 8 9 38 . . 43 13 . . 101 82 22 . 1 Explosive 3 | . . . . . . . . . . . . . . . . . . . . . . . . . . . 3 Electromagnetic . | . . . . . . . . . . . . . . . . . . . . . . . . . . . . Robot Hit Streak 30 | 4 18 15 30 7 19 23 2 7 5 4 . 6 8 7 5 11 4 7 7 7 8 8 7 9 9 12 11 Robot Miss Streak 9 | 1 3 . 9 6 3 4 6 5 6 2 . 3 7 1 3 7 4 8 4 2 2 4 6 2 3 4 4 Penetration Max 2 | . . . . . . 1 . . . . . . . . . 1 . 1 . 1 . 1 1 . 1 2 . Secondary Targets 8 | . 1 . . 3 1 3 . . . . . . . . . . . . . . . . . . . . . Max Gunslinging Chain 1 | . 1 . . 1 1 1 . . . . . . . . . . . . . . . . . . . . . Capacitor 324 | . . . . . . . . . . . . . . . . . . . . . . . 93 . 78 153 . Shots Hit Robots 977 | 5 56 14 112 39 40 99 1 10 10 4 . 9 57 8 12 49 15 33 30 16 4 27 72 52 60 86 57 Core Hits 612 | 3 28 3 65 18 11 82 . 9 4 2 . 11 45 3 6 56 13 34 18 8 3 15 32 30 25 36 52 Critical Kills 19 | . . . 1 . . 1 . . . . . . . . . 2 . 2 1 . 1 5 2 2 2 . . Critical Parts Destroyed 23 | . . . 4 . . 4 . . . . . . 1 . 1 3 . 2 . 1 . 5 2 . . . . Critical Strikes 57 | . 6 1 7 . . 6 . . . . . . 1 . 1 5 . 4 2 3 1 11 5 2 2 . . Burn 7 | . 6 1 . . . . . . . . . . . . . . . . . . . . . . . . . Meltdown 4 | . . . . . . . . . . . . . . . . . . . . . . . . 2 2 . . Destroy 33 | . . . . . . . . . . . . . 1 . 1 5 . 4 2 3 1 11 5 . . . . Blast 2 | . . . 2 . . . . . . . . . . . . . . . . . . . . . . . . Smash 11 | . . . 5 . . 6 . . . . . . . . . . . . . . . . . . . . . Melee Attacks 80 | . . . 44 14 2 20 . . . . . . . . . . . . . . . . . . . . . Impact 68 | . . . 43 3 2 20 . . . . . . . . . . . . . . . . . . . . . Slashing 12 | . . . 1 11 . . . . . . . . . . . . . . . . . . . . . . . Piercing . | . . . . . . . . . . . . . . . . . . . . . . . . . . . . Sneak Attacks 11 | . . . 9 1 1 . . . . . . . . . . . . . . . . . . . . . . Combat Hostiles . | . . . . . . . . . . . . . . . . . . . . . . . . . . . . Follow-up Attacks 10 | . . . 5 2 . 3 . . . . . . . . . . . . . . . . . . . . . Damage Inflicted 126395 | 57 778 111 2789 845 767 4417 98 686 640 286 . 682 4814 813 910 4914 1458 2919 4464 2538 664 4978 8665 13871 15174 22829 25228 Guns 2765 | 57 776 111 . 542 694 453 . . . . . . . . . . . . . . . . . 132 . . . Cannons 108338 | . . . 1679 . . 3287 98 686 640 286 . 631 4173 813 910 4914 1458 2614 4440 2538 648 4978 8665 13739 15174 22794 13173 Explosions 13006 | . . . . . . . . . . . . 51 595 . . . . 305 . . . . . . . . 12055 Melee 2163 | . . . 1110 303 73 677 . . . . . . . . . . . . . . . . . . . . . Ramming 123 | . 2 . . . . . . . . . . . 46 . . . . . 24 . 16 . . . . 35 . Kinetic 69830 | 46 340 48 1679 542 694 958 . . . . . . . . 459 1750 1458 2614 204 1106 648 4978 3843 324 12172 22794 13173 Thermal 52116 | 11 436 63 . . . 2782 98 686 640 286 . 682 4768 813 451 3164 . 143 4236 1432 . . 4822 13547 3002 . 10054 Explosive 2152 | . . . . . . . . . . . . . . . . . . 151 . . . . . . . . 2001 Electromagnetic 11 | . . . . . . . . . . . . . . . . . . 11 . . . . . . . . . Impact 1849 | . . . 1046 53 73 677 . . . . . . . . . . . . . . . . . . . . . Slashing 314 | . . . 64 250 . . . . . . . . . . . . . . . . . . . . . . . Piercing . | . . . . . . . . . . . . . . . . . . . . . . . . . . . . Highest Corruption 16 | . . . . . . 1 15 16 16 16 16 16 1 1 1 10 10 . . . . 5 2 6 . 2 6 Average Corruption 5 | . . . . . . 1 9 15 16 16 16 16 1 1 1 8 10 . . . . 3 2 3 . 1 2 Corruption Purged . | . . . . . . . . . . . . . . . . . . . . . . . . . . . . Corruption Blocked . | . . . . . . . . . . . . . . . . . . . . . . . . . . . . Effects 159 | . . . . . . 8 6 25 18 7 3 8 3 2 3 10 19 . . . . 5 14 17 . 2 9 Message Errors 36 | . . . . . . 1 . 7 5 1 . 1 . . . 3 4 . . . . 4 3 5 . . 2 Matter Fused 40 | . . . . . . 3 . 6 4 2 . 1 1 . 1 5 5 . . . . . 4 4 . 1 3 Heat Flow Errors 19 | . . . . . . 2 2 2 4 2 1 1 1 1 . . . . . . . . 1 1 . . 1 Energy Discharges 20 | . . . . . . 1 1 2 2 . 2 1 . . . 2 3 . . . . 1 2 2 . . 1 Parts Rejected 3 | . . . . . . . . 1 . . . . . . . . 1 . . . . . 1 . . . . Parts Fused 2 | . . . . . . . . . . . . . . . . . 2 . . . . . . . . . . Data Loss (minor) 15 | . . . . . . 1 1 4 . 2 . 1 . . 1 . 2 . . . . . . 2 . . 1 Data Loss (major) 11 | . . . . . . . 1 2 3 . . 2 . 1 . . 1 . . . . . 1 . . . . Misfires 2 | . . . . . . . . . . . . . . . . . . . . . . . . 2 . . . Alerts 6 | . . . . . . . . 1 . . . 1 . . 1 . . . . . . . 2 . . 1 . Weapon Failures 5 | . . . . . . . 1 . . . . . 1 . . . 1 . . . . . . 1 . . 1 Overload Shots 1 | . . . . . . . . . . . . . . . . . . . . . . . . 1 . . . Overflow Damage 22991 | . . . 218 20 43 225 . 1 76 31 . 27 313 39 54 61 . 190 307 206 . 880 864 3302 4050 6614 5470 Projectiles 21348 | . . . 6 . . 36 . 1 76 31 . 27 183 39 54 61 . 190 307 206 . 880 864 3302 4050 6614 4421 Explosions 1179 | . . . . . . . . . . . . . 130 . . . . . . . . . . . . . 1049 Melee 464 | . . . 212 20 43 189 . . . . . . . . . . . . . . . . . . . . . Knockbacks 178 | . . . 43 . . 33 . . . . . . . . . 10 5 13 1 . . 1 9 . 21 27 15 Impact 14 | . . . 7 . . 6 . . . . . . . . . . . . 1 . . . . . . . . Kinetic 149 | . . . 32 . . 26 . . . . . . . . . 8 5 11 . . . 1 8 . 19 25 14 Secondary 15 | . . . 4 . . 1 . . . . . . . . . 2 . 2 . . . . 1 . 2 2 1 Self-Inflicted Damage 1082 | . . . . . . . . . . . . . . . . . . . . . 8 92 . . . . 982 Shots 3 | . . . . . . . . . . . . . . . . . . . . . . 1 . . . . 2 Rammed 2 | . . . . . . . . . . . . . . . . . . . 1 . 1 . . . . . . Targets Rammed 5 | . 1 . . . . . . . . . . . 1 . . . . . 1 . 1 . . . . 1 . Kicked 3 | . 1 . . . . . . . . . . . 1 . . . . . . . . . . . . 1 . Crushed . | . . . . . . . . . . . . . . . . . . . . . . . . . . . . Highest Temperature 379 | . 168 . 270 305 111 217 7 69 59 . . 57 45 . 29 230 357 379 206 303 . . 322 204 375 62 268 Average Temperature 85 | . 56 . 113 83 41 58 7 35 49 . . 57 45 . 29 96 180 158 89 133 . . 72 51 102 24 76 Received Heat Transfer 3778 | . 207 36 666 117 81 360 . 24 . . . 27 234 24 21 355 122 30 458 9 . 63 108 161 99 117 459 Effects 4 | . . . . . . . . . . . . . . . . . 1 . . . . . 1 . 2 . . Shutdowns 1 | . . . . . . . . . . . . . . . . . . . . . . . . . 1 . . Energy Bleed 1 | . . . . . . . . . . . . . . . . . 1 . . . . . . . . . . Interference 1 | . . . . . . . . . . . . . . . . . . . . . . . 1 . . . . Damage (minor) 1 | . . . . . . . . . . . . . . . . . . . . . . . . . 1 . . Siege Activations 2 | . . . . . . . . . . . . . . . . . . 1 . . . . . . . . 1 Total Turns 141 | . . . . . . . . . . . . . . . . . . 14 . . . . . . . . 127 Longest Duration 127 | . . . . . . . . . . . . . . . . . . 14 . . . . . . . . 127 Martial Activations . | . . . . . . . . . . . . . . . . . . . . . . . . . . . . Shielding Activations . | . . . . . . . . . . . . . . . . . . . . . . . . . . . . Robots Disrupted . | . . . . . . . . . . . . . . . . . . . . . . . . . . . . Combat Hostiles . | . . . . . . . . . . . . . . . . . . . . . . . . . . . . Robots Corrupted 12 | . . . 7 . . 2 . . . . . . . . . . . . . . . 1 . . . 1 1 Combat Hostiles 6 | . . . 3 . . 2 . . . . . . . . . . . . . . . 1 . . . . . Parts Fried 24 | . . . 12 . 3 4 . . . . . . . . . . . . . . . . . . . 3 2 Impact Corruptions 26 | . . . 12 1 2 4 . . . . . . . . . . . . . . . 2 . . . 3 2 Robots Melted 11 | . . . . . . 4 . . 1 . . . . . . 1 . . . . . . 1 2 2 . . Combat Hostiles 10 | . . . . . . 3 . . 1 . . . . . . 1 . . . . . . 1 2 2 . . Parts Melted 58 | . . 1 . . 1 24 . 7 . . . 3 7 . 1 8 . . 1 . . . . 2 3 . . Heat Transferred 26711 | 25 1591 222 . . . 5906 150 1050 1000 350 . 1030 4224 481 296 3294 . 100 1147 407 . . 1776 2822 600 . 240 Parts Sabotaged . | . . . . . . . . . . . . . . . . . . . . . . . . . . . . Parts Stolen . | . . . . . . . . . . . . . . . . . . . . . . . . . . . . Parts Stripped . | . . . . . . . . . . . . . . . . . . . . . . . . . . . . Power Chain Reactions 1 | . . . . . . . . . . . . . . . . . . . . . . . . . . . 1 Alert | -11 -10 -10 -8 -8 -8 -6 -6 -6 -6 -6 -6 -5 -5 -5 -5 -5 -4 -4 -4 -4 -4 -4 -3 -3 -2 -2 -2 ------- Run | Yrd Mat Sub Mat Sto Rec Fac Was Fac Low Low Dat Pro Fac Upp Upp War Pro Fac Ext Cet Arc Hub Res Tes Res Qua Sec Maximum Alert Level 5 | . . . 1 1 . 1 . . . . . . 3 . . . . 5 4 3 2 3 4 5 4 5 5 Low Security (%) 39 | 100 100 . 78 76 100 71 100 100 . . . . 7 . . . . . . . . 13 . . . . . Level 1 10 | . . . 21 23 . 29 . . . . . . . . . . . . . . 88 61 14 . . . . Level 2 7 | . . . . . . . . . . . . . 56 . . . . . . . 11 23 23 . . 5 . Level 3 22 | . . . . . . . . . . . . . 35 . . . . 28 56 100 . . 52 58 23 47 32 Level 4 16 | . . . . . . . . . . . . . . . . . . 31 43 . . . 9 31 76 18 58 Level 5 2 | . . . . . . . . . . . . . . . . . . 39 . . . . . 9 . 24 3 High Security . | . . . . . . . . . . . . . . . . . . . . . . . . . . 3 4 Max Security . | . . . . . . . . . . . . . . . . . . . . . . . . . . . . Peak Influence 2671 | 5 153 . 285 229 65 338 109 93 . . . . 894 . . . . 1938 1343 857 408 700 1468 1646 1329 1915 2671 Initial 1100 | . . . . 117 59 50 109 30 . . . . 56 . . . . 936 941 729 328 133 363 819 915 717 1100 Average 562 | . 83 . 93 161 4 122 75 37 . . . . 619 . . . . 1447 1065 813 380 297 801 1062 1158 1163 1277 Influence Increases 16734 | 10 464 . 751 332 62 898 5 239 70 60 . 140 1215 30 140 590 190 2046 714 253 92 829 1741 1133 1007 1646 2077 Destroy 0b10 Robot/C 8380 | . 260 . 460 200 40 560 . 120 60 40 . 140 680 20 120 480 160 460 380 160 80 280 640 840 620 880 700 Destroy 0b10 Robot/NC 525 | 10 15 . 60 10 5 50 . 5 . . . . 45 . . 5 . 15 25 10 . 30 15 25 30 75 95 Destroy Leader 1344 | . 52 . 116 44 . 150 . 42 10 20 . . 82 10 20 . 30 72 34 . . 84 142 94 88 126 128 Allied During Kill 249 | . . . . . . . . . . . . . . . . . . . 190 25 8 . . . 2 13 11 Trap Triggered on 0b10 10 | . 10 . . . . . . . . . . . . . . . . . . . . . . . . . . Successful Hack 165 | . 6 . . . . . . 9 . . . . 21 . . . . . 34 . . 14 67 14 . . . Select Force Hacks 30 | . . . . . . 30 . . . . . . . . . . . . . . . . . . . . . Disable Machine 1350 | . 15 . . 45 15 30 . 45 . . . . 180 . . . . 345 15 30 . 180 45 60 15 135 195 Anti-Garrison Action 550 | . . . . . . . . . . . . . . . . . . . . . . . 550 . . . . Destroy Structure 2266 | . 1 . 25 3 2 28 5 18 . . . . 102 . . . . 254 36 28 4 226 192 40 177 267 858 Advance Influence 950 | . . . . . . 50 . . . . . . . . . . . 900 . . . . . . . . . Partial Spotted 90 | . . . . . . . . . . . . . . . . . . . . . . 15 15 30 . . 30 Lose Combat Pursuer 825 | . 105 . 90 30 . . . . . . . . 105 . . 105 . . . . . . 75 30 75 150 60 Influence Decreases 14096 | 10 432 32 472 458 215 584 275 228 125 60 . 50 436 392 237 588 544 182 1333 734 534 517 975 963 1359 1007 1354 Entered New Map 7183 | . . 16 . 162 94 . 205 14 21 . . . 34 322 97 410 412 22 981 574 494 247 329 639 713 559 838 Time Decay 6303 | 10 432 16 352 286 121 574 70 214 104 60 . 50 392 70 140 118 132 150 302 140 40 270 636 294 546 428 356 Lost Part 390 | . . . 120 10 . 10 . . . . . . 10 . . 60 . 10 10 . . . 10 30 . . 120 Lost Ally 220 | . . . . . . . . . . . . . . . . . . . 40 20 . . . . 100 20 40 Squads Dispatched 84 | . 2 . 6 . . 12 . 3 . . . . 5 . . . . 3 3 . . 3 9 9 2 12 15 Investigation 11 | . 1 . 1 . . 2 . 1 . . . . . . . . . . . . . . 6 . . . . Extermination 18 | . . . . . . 5 . 1 . . . . 1 . . . . 1 . . . 1 . 2 . 4 3 Reinforcement 31 | . 1 . 2 . . 4 . 1 . . . . 2 . . . . 1 . . . 2 3 3 2 2 8 Assault 18 | . . . . . . . . . . . . . 2 . . . . 1 3 . . . . 4 . 6 2 Garrison 5 | . . . 3 . . 1 . . . . . . . . . . . . . . . . . . . . 1 Intercept 1 | . . . . . . . . . . . . . . . . . . . . . . . . . . . 1 Searches Triggered . | . . . . . . . . . . . . . . . . . . . . . . . . . . . . Data Miner Redirects 4 | . . . . . . . . . . . . . . . . . . 1 2 . . . . 1 . . . Construction Impeded 3 | . . . . . . 1 . . . . . . 1 . . . . . . . . . . . . . 1 Haulers Reinforced 3 | . . . . . . . . 1 . . . . . . . . . 1 . . . . . . 1 . . Active Scanning Responses . | . . . . . . . . . . . . . . . . . . . . . . . . . . . . Cargo Convoy Interrupts 1 | . . . . . . . . . . . . . 1 . . . . . . . . . . . . . . Stealth | -11 -10 -10 -8 -8 -8 -6 -6 -6 -6 -6 -6 -5 -5 -5 -5 -5 -4 -4 -4 -4 -4 -4 -3 -3 -2 -2 -2 --------- Run | Yrd Mat Sub Mat Sto Rec Fac Was Fac Low Low Dat Pro Fac Upp Upp War Pro Fac Ext Cet Arc Hub Res Tes Res Qua Sec Distress Signals 33 | . 3 . 2 . 1 1 . 1 . . . . 2 . . . 1 3 . 2 . . 8 1 3 1 4 Communications Jammed . | . . . . . . . . . . . . . . . . . . . . . . . . . . . . Distress Signals . | . . . . . . . . . . . . . . . . . . . . . . . . . . . . Times Spotted 619 | . 32 1 39 13 6 35 5 8 3 2 . 7 43 1 8 71 12 22 21 9 4 21 48 49 37 60 62 Peak Tracking Total 21 | . 6 1 6 4 2 5 5 3 3 1 . 4 9 1 5 21 5 7 6 5 1 4 4 12 6 8 15 Tactical Retreats 29 | . 4 . 4 2 . . . . . . . . 3 . . 2 . . . . . . 4 2 3 4 1 Traps | -11 -10 -10 -8 -8 -8 -6 -6 -6 -6 -6 -6 -5 -5 -5 -5 -5 -4 -4 -4 -4 -4 -4 -3 -3 -2 -2 -2 ------- Run | Yrd Mat Sub Mat Sto Rec Fac Was Fac Low Low Dat Pro Fac Upp Upp War Pro Fac Ext Cet Arc Hub Res Tes Res Qua Sec Traps Triggered 14 | . . . 1 1 . 2 . . . . . . 2 . . . . . . . . . 8 . . . . Indirectly . | . . . . . . . . . . . . . . . . . . . . . . . . . . . . Trap Hack Attempts . | . . . . . . . . . . . . . . . . . . . . . . . . . . . . Triggered . | . . . . . . . . . . . . . . . . . . . . . . . . . . . . Disarmed . | . . . . . . . . . . . . . . . . . . . . . . . . . . . . Reprogrammed 6 | . 6 . . . . . . . . . . . . . . . . . . . . . . . . . . Reused 1 | . 1 . . . . . . . . . . . . . . . . . . . . . . . . . . Traps Extracted . | . . . . . . . . . . . . . . . . . . . . . . . . . . . . Installed . | . . . . . . . . . . . . . . . . . . . . . . . . . . . . Triggered 1 | . 1 . . . . . . . . . . . . . . . . . . . . . . . . . . Machines | -11 -10 -10 -8 -8 -8 -6 -6 -6 -6 -6 -6 -5 -5 -5 -5 -5 -4 -4 -4 -4 -4 -4 -3 -3 -2 -2 -2 ---------- Run | Yrd Mat Sub Mat Sto Rec Fac Was Fac Low Low Dat Pro Fac Upp Upp War Pro Fac Ext Cet Arc Hub Res Tes Res Qua Sec Machines Disabled 103 | . 1 . . 3 1 2 . 3 2 . . 4 12 . . 2 . 23 1 2 . 12 4 4 1 11 15 Max in Single Turn 10 | . 1 . . 1 1 1 . 2 1 . . 2 10 . . 1 . 5 . 1 . 6 1 1 1 1 9 Garrison Access 4 | . . . . . . . . . . . . . . . . . . . . . . . 3 . 1 . . Network Hub 2 | . . . . . . . . . . . . . . . . . . . . . . 2 . . . . . Machines Repaired . | . . . . . . . . . . . . . . . . . . . . . . . . . . . . Machines Dismantled . | . . . . . . . . . . . . . . . . . . . . . . . . . . . . Machines Sabotaged . | . . . . . . . . . . . . . . . . . . . . . . . . . . . . Overloaded Fab Kills . | . . . . . . . . . . . . . . . . . . . . . . . . . . . . Hacking | -11 -10 -10 -8 -8 -8 -6 -6 -6 -6 -6 -6 -5 -5 -5 -5 -5 -4 -4 -4 -4 -4 -4 -3 -3 -2 -2 -2 --------- Run | Yrd Mat Sub Mat Sto Rec Fac Was Fac Low Low Dat Pro Fac Upp Upp War Pro Fac Ext Cet Arc Hub Res Tes Res Qua Sec Machines Accessed 64 | . 5 . 2 1 7 5 . 3 . . 3 . 5 . . 6 . . 8 1 . 3 10 3 . . 2 Terminals 35 | . 5 . 1 1 2 3 . 3 . . . . 3 . . . . . 7 1 . 3 3 2 . . 1 Fabricators 1 | . . . . . . . . . . . . . . . . . . . . . . . 1 . . . . Repair Stations 2 | . . . . . . . . . . . . . 1 . . . . . . . . . . 1 . . . Recycling Units 8 | . . . 1 . 4 1 . . . . . . . . . . . . 1 . . . 1 . . . . Scanalyzers 4 | . . . . . . 1 . . . . . . . . . . . . . . . . 3 . . . . Garrison Access 4 | . . . . . . . . . . . . . 1 . . . . . . . . . 2 . . . 1 Total Hacks 141 | . 10 . 5 2 16 8 . 5 . . 21 . 12 . . 10 . . 17 1 . 4 19 6 . . 5 Successful 72 | . 3 . 4 . 8 3 . 1 . . 21 . 4 . . 10 . . 7 1 . 1 7 1 . . 1 Failed 69 | . 7 . 1 2 8 5 . 4 . . . . 8 . . . . . 10 . . 3 12 5 . . 4 Catastrophic 18 | . 3 . . . 2 1 . . . . . . 3 . . . . . 2 . . 1 2 2 . . 2 Database Lockouts . | . . . . . . . . . . . . . . . . . . . . . . . . . . . . Manual 47 | . 3 . . 3 2 7 . 3 . . . . 8 . . . . . 5 . . 3 7 3 . . 3 Terminals 66 | . 10 . 1 2 4 5 . 5 . . . . 8 . . . . . 15 1 . 4 5 3 . . 3 Fabricators 1 | . . . . . . . . . . . . . . . . . . . . . . . 1 . . . . Repair Stations 5 | . . . . . . . . . . . . . 2 . . . . . . . . . . 3 . . . Recycling Units 17 | . . . 4 . 9 1 . . . . . . . . . . . . 2 . . . 1 . . . . Scanalyzers 10 | . . . . . . 2 . . . . . . . . . . . . . . . . 8 . . . . Garrison Access 8 | . . . . . . . . . . . . . 2 . . . . . . . . . 4 . . . 2 Terminal Hacks 50 | . 2 . 1 . 4 . . 1 . . 21 . 1 . . 10 . . 5 1 . 1 1 1 . . 1 Record 14 | . . . . . 1 . . . . . 1 . . . . 8 . . 2 1 . . . 1 . . . Part Schematic 13 | . . . . . . . . . . . 13 . . . . . . . . . . . . . . . . Robot Schematic 4 | . . . . . . . . . . . 4 . . . . . . . . . . . . . . . . Prototype ID Bank 3 | . . . . . . . . . . . 3 . . . . . . . . . . . . . . . . Open Door 2 | . . . . . . . . . . . . . . . . 2 . . . . . . . . . . . Branch Access Points 2 | . . . . . . . . 1 . . . . 1 . . . . . . . . . . . . . . Emergency Access Points 2 | . . . . . . . . . . . . . . . . . . . . . . 1 1 . . . . Alert Level 2 | . . . 1 . . . . . . . . . . . . . . . 1 . . . . . . . . Locate Traps 2 | . 1 . . . . . . . . . . . . . . . . . 1 . . . . . . . . Reprogram Traps 1 | . 1 . . . . . . . . . . . . . . . . . . . . . . . . . . Dispatch Records 1 | . . . . . . . . . . . . . . . . . . . 1 . . . . . . . . Recall Reinforcements 1 | . . . . . . . . . . . . . . . . . . . . . . . . . . . 1 Zone Layout 1 | . . . . . 1 . . . . . . . . . . . . . . . . . . . . . . Release Object 2 | . . . . . 2 . . . . . . . . . . . . . . . . . . . . . . Fabricator Hacks . | . . . . . . . . . . . . . . . . . . . . . . . . . . . . Repair Station Hacks 2 | . . . . . . . . . . . . . 2 . . . . . . . . . . . . . . Scan Component 1 | . . . . . . . . . . . . . 1 . . . . . . . . . . . . . . Repair 1 | . . . . . . . . . . . . . 1 . . . . . . . . . . . . . . Recycling Unit Hacks 10 | . . . 3 . 4 1 . . . . . . . . . . . . 1 . . . 1 . . . . Process 1 | . . . 1 . . . . . . . . . . . . . . . . . . . . . . . . Report Inventory 1 | . . . 1 . . . . . . . . . . . . . . . . . . . . . . . . Retrieve Matter 1 | . . . 1 . . . . . . . . . . . . . . . . . . . . . . . . Retrieve Components 7 | . . . . . 4 1 . . . . . . . . . . . . 1 . . . 1 . . . . Scanalyzer 2 | . . . . . . . . . . . . . . . . . . . . . . . 2 . . . . Insert Component 2 | . . . . . . . . . . . . . . . . . . . . . . . 2 . . . . Garrison Access Hacks . | . . . . . . . . . . . . . . . . . . . . . . . . . . . . Unauthorized Hacks 8 | . 1 . . . . 2 . . . . . . 1 . . . . . 1 . . . 3 . . . . Terminals 4 | . 1 . . . . 1 . . . . . . 1 . . . . . 1 . . . . . . . . Botnet 1 | . . . . . . . . . . . . . 1 . . . . . . . . . . . . . . Operators 3 | . 1 . . . . 1 . . . . . . . . . . . . 1 . . . . . . . . Fabricators 1 | . . . . . . . . . . . . . . . . . . . . . . . 1 . . . . Fabnet 1 | . . . . . . . . . . . . . . . . . . . . . . . 1 . . . . Repair Stations . | . . . . . . . . . . . . . . . . . . . . . . . . . . . . Recycling Units . | . . . . . . . . . . . . . . . . . . . . . . . . . . . . Scanalyzers 1 | . . . . . . 1 . . . . . . . . . . . . . . . . . . . . . Extract 1 | . . . . . . 1 . . . . . . . . . . . . . . . . . . . . . Garrison Access 2 | . . . . . . . . . . . . . . . . . . . . . . . 2 . . . . Jam 2 | . . . . . . . . . . . . . . . . . . . . . . . 2 . . . . Data Cores Recovered 1 | . . . . . . 1 . . . . . . . . . . . . . . . . . . . . . Used . | . . . . . . . . . . . . . . . . . . . . . . . . . . . . Hacking Detections 37 | . 5 . 1 2 3 4 . 3 . . . . 3 . . . . . 6 . . 2 4 3 . . 1 Full Trace Events 4 | . . . . . 1 1 . 1 . . . . . . . . . . . . . . 1 . . . . Feedback Events . | . . . . . . . . . . . . . . . . . . . . . . . . . . . . Feedback Blocked . | . . . . . . . . . . . . . . . . . . . . . . . . . . . . Robot Schematics Acquired 10 | . . . . . . . . . . . 4 . . . . . . . . . . . . 4 . 2 . Robots Built . | . . . . . . . . . . . . . . . . . . . . . . . . . . . . Authchips . | . . . . . . . . . . . . . . . . . . . . . . . . . . . . Time . | . . . . . . . . . . . . . . . . . . . . . . . . . . . . Total Robot Build Rating . | . . . . . . . . . . . . . . . . . . . . . . . . . . . . Part Schematics Acquired 25 | . . . . . . 1 . . . . 13 . . . . . . . . . . . . 6 . 3 2 Parts Built . | . . . . . . . . . . . . . . . . . . . . . . . . . . . . Authchips . | . . . . . . . . . . . . . . . . . . . . . . . . . . . . Time . | . . . . . . . . . . . . . . . . . . . . . . . . . . . . Total Part Build Rating . | . . . . . . . . . . . . . . . . . . . . . . . . . . . . Part Studies Acquired . | . . . . . . . . . . . . . . . . . . . . . . . . . . . . Parts Repaired 1 | . . . . . . . . . . . . . 1 . . . . . . . . . . . . . . Time 50 | . . . . . . . . . . . . . 50 . . . . . . . . . . . . . . Parts Recycled . | . . . . . . . . . . . . . . . . . . . . . . . . . . . . Recycled Matter 255 | . . . 255 . . . . . . . . . . . . . . . . . . . . . . . . Retrieved Matter . | . . . . . . . . . . . . . . . . . . . . . . . . . . . . Retrieved Components 16 | . . . . . 9 . . . . . . . . . . . . . 4 . . . 3 . . . . Parts Scanalyzed . | . . . . . . . . . . . . . . . . . . . . . . . . . . . . Part Schematics Acquired . | . . . . . . . . . . . . . . . . . . . . . . . . . . . . Parts Damaged . | . . . . . . . . . . . . . . . . . . . . . . . . . . . . Bothacking | -11 -10 -10 -8 -8 -8 -6 -6 -6 -6 -6 -6 -5 -5 -5 -5 -5 -4 -4 -4 -4 -4 -4 -3 -3 -2 -2 -2 ------------ Run | Yrd Mat Sub Mat Sto Rec Fac Was Fac Low Low Dat Pro Fac Upp Upp War Pro Fac Ext Cet Arc Hub Res Tes Res Qua Sec Used RIF Installer . | . . . . . . . . . . . . . . . . . . . . . . . . . . . . Robots Hacked 14 | . . . . . . . . . . . . . . . . . . . . . . . . . 7 2 5 Non-combat . | . . . . . . . . . . . . . . . . . . . . . . . . . . . . Combat 14 | . . . . . . . . . . . . . . . . . . . . . . . . . 7 2 5 Robot Hacks Applied . | . . . . . . . . . . . . . . . . . . . . . . . . . . . . Relay Couplers Released 5 | . . . . . . . . . . . . . . . . . . . . . . . 3 . 2 . . Machine Destruction 5 | . . . . . . . . . . . . . . . . . . . . . . . 3 . 2 . . Fabnet Peak Effective % 3 | . . . . . . . . . . . . . . . . . . . . . . . . . 3 3 3 Autooverrided 14 | . . . . . . . . . . . . . . . . . . . . . . . . . 7 2 5 Robots Rewired . | . . . . . . . . . . . . . . . . . . . . . . . . . . . . Allies Hacked 1 | . . . . . . . . . . . . . . . . . . . . . . . . . . . 1 Hacks Repelled . | . . . . . . . . . . . . . . . . . . . . . . . . . . . . Allies | -11 -10 -10 -8 -8 -8 -6 -6 -6 -6 -6 -6 -5 -5 -5 -5 -5 -4 -4 -4 -4 -4 -4 -3 -3 -2 -2 -2 -------- Run | Yrd Mat Sub Mat Sto Rec Fac Was Fac Low Low Dat Pro Fac Upp Upp War Pro Fac Ext Cet Arc Hub Res Tes Res Qua Sec Total Allies 21 | . . . . . . . . . . . . . . . . . . . 7 . . . . . 7 2 5 Largest Group 7 | . . . . . . . . . . . . . . . . . . . 7 2 1 . . . 2 1 1 Highest-Rated Group 259 | . . . . . . . . . . . . . . . . . . . 259 97 44 . . . 82 69 82 Highest-Rated Ally 82 | . . . . . . . . . . . . . . . . . . . 51 51 44 . . . 82 69 82 Total Orders . | . . . . . . . . . . . . . . . . . . . . . . . . . . . . Ally Attacks 103 | . . . . . . . . . . . . . . . . . . . 48 30 2 . . . 10 4 9 Total Damage 2203 | . . . . . . . . . . . . . . . . . . . 1149 548 32 . . . 218 121 135 Kills 9 | . . . . . . . . . . . . . . . . . . . 4 2 1 . . . 1 1 . Allies Corrupted 1 | . . . . . . . . . . . . . . . . . . . . . . . . . . 1 . Allies Melted 1 | . . . . . . . . . . . . . . . . 1 . . . . . . . . . . . Intel | -11 -10 -10 -8 -8 -8 -6 -6 -6 -6 -6 -6 -5 -5 -5 -5 -5 -4 -4 -4 -4 -4 -4 -3 -3 -2 -2 -2 ------- Run | Yrd Mat Sub Mat Sto Rec Fac Was Fac Low Low Dat Pro Fac Upp Upp War Pro Fac Ext Cet Arc Hub Res Tes Res Qua Sec Active Infowar (turns) 9535 | 13 1132 250 928 . . . . . . . . . 277 . . . . 74 . . . 485 2251 646 1561 1087 831 Optics 5904 | . . . . . . . . . . . . . . . . . . . . . . . 1827 598 1561 1087 831 Sensors 6340 | . . . . . . . . . . . . . 277 . . . . 74 . . . 485 1935 543 1530 857 639 Seismic 2323 | 13 1132 250 928 . . . . . . . . . . . . . . . . . . . . . . . . Robot Analysis Total . | . . . . . . . . . . . . . . . . . . . . . . . . . . . . Derelict Logs Recovered 7 | . . 1 . . . . . . 1 . . 1 . 1 2 . 1 . . . . . . . . . . Drone Launches . | . . . . . . . . . . . . . . . . . . . . . . . . . . . . Drone Recoveries . | . . . . . . . . . . . . . . . . . . . . . . . . . . . . Exploration | -11 -10 -10 -8 -8 -8 -6 -6 -6 -6 -6 -6 -5 -5 -5 -5 -5 -4 -4 -4 -4 -4 -4 -3 -3 -2 -2 -2 ------------- Run | Yrd Mat Sub Mat Sto Rec Fac Was Fac Low Low Dat Pro Fac Upp Upp War Pro Fac Ext Cet Arc Hub Res Tes Res Qua Sec Turns Passed 20321 | 109 1132 250 1128 637 1740 1900 157 647 448 243 75 223 925 151 284 1384 541 308 665 296 99 588 2251 646 1561 1087 846 Spaces Moved 18420 | 72 649 141 414 379 908 1225 141 611 432 237 76 209 688 135 262 1194 338 147 517 291 92 710 3690 869 2140 1122 731 Core 26 | 3 . . . . . . . . . . . . . . . . . . . . . . . . . . 23 Treads 2140 | . 271 141 316 54 750 195 . . . . . . . . . . 78 147 172 . . . . . . . 16 Legs 6733 | 69 378 . . . . 707 . . . . . . 402 135 262 1194 260 . . . . . . . 1512 1122 692 Wheels 430 | . . . 98 325 7 . . . . . . . . . . . . . . . . . . . . . . Hover 9091 | . . . . . 151 323 141 611 432 237 76 209 286 . . . . . 345 291 92 710 3690 869 628 . . Flight . | . . . . . . . . . . . . . . . . . . . . . . . . . . . . Fastest Speed 50 | 50 120 160 90 101 120 99 99 99 99 99 99 99 99 99 99 99 106 149 79 79 79 50 50 50 50 67 50 Average Speed 85 | 117 136 160 150 126 153 105 99 99 99 99 99 99 99 99 99 101 145 149 102 79 79 64 50 50 61 67 68 Slowest Speed 240 | 120 160 160 240 240 191 120 99 99 99 99 99 99 99 99 99 155 205 149 149 79 79 79 50 50 106 67 139 Overloaded Moves . | . . . . . . . . . . . . . . . . . . . . . . . . . . . . Propulsion Burnouts . | . . . . . . . . . . . . . . . . . . . . . . . . . . . . Robots Hopped 5 | . . . . . . . . . . . . . . . . . . . 5 . . . . . . . . Potential Cave-ins 10 | . . . . . . . 6 . . . . . . . . 4 . . . . . . . . . . . Cave-ins Triggered . | . . . . . . . . . . . . . . . . . . . . . . . . . . . . Exploration Rate (%) 54 | 7 91 14 32 54 99 34 85 23 61 46 68 51 15 31 52 93 63 9 56 78 86 58 83 76 54 65 32 Regions Visited 27 Branch Regions 18 Pre-discovered Areas 4 | . . 1 . . . . . . . . 1 . . . . 2 . . . . . . . . . . . Known Exits Taken 9 | . . . 1 . . . . 1 . . . . 1 . . . . 1 1 . . 1 . 1 1 1 . Unknown Exits Taken 16 | 1 1 1 . 1 1 . . . 1 1 1 1 . 1 1 1 1 . . 1 1 . 1 . . . . Scrap Searched 11 | . . . . . . . . . 2 2 . 3 . 1 2 . 1 . . . . . . . . . . Spaces Dug 106 | . . . . . 1 3 16 . . . . . . . . . 6 33 1 . . 3 14 6 9 8 6 Terrain Destroyed 1494 | . . . 21 . 1 27 16 18 17 5 . 26 49 3 13 40 42 149 17 7 2 196 107 19 87 97 535 Melee 1 | . . . . . 1 . . . . . . . . . . . . . . . . . . . . . . Projectile 698 | . . . 21 . . 27 16 18 17 5 . 9 39 3 13 40 42 59 17 7 2 30 107 19 87 97 23 AOE 795 | . . . . . . . . . . . . 17 10 . . . . 90 . . . 166 . . . . 512 Terrain Rammed . | . . . . . . . . . . . . . . . . . . . . . . . . . . . . Walls Destroyed . | . . . . . . . . . . . . . . . . . . . . . . . . . . . . Machines Disabled . | . . . . . . . . . . . . . . . . . . . . . . . . . . . . Actions | -11 -10 -10 -8 -8 -8 -6 -6 -6 -6 -6 -6 -5 -5 -5 -5 -5 -4 -4 -4 -4 -4 -4 -3 -3 -2 -2 -2 --------- Run | Yrd Mat Sub Mat Sto Rec Fac Was Fac Low Low Dat Pro Fac Upp Upp War Pro Fac Ext Cet Arc Hub Res Tes Res Qua Sec Total 22052 | 87 811 152 744 489 1235 1738 154 650 446 242 75 219 898 148 277 1336 373 201 607 336 112 808 4044 1046 2374 1459 991 Wait 1707 | . 93 5 189 35 276 318 8 13 . 2 . . 108 2 1 35 10 10 37 10 12 34 92 46 84 147 140 Move 18384 | 71 648 140 413 378 907 1225 140 610 431 236 75 208 687 134 261 1193 337 146 506 290 91 709 3689 868 2139 1121 731 Hop 5 | . . . . . . . . . . . . . . . . . . . 5 . . . . . . . . Pick Up 180 | 4 10 . 12 9 3 36 . 6 2 . . 1 12 . . 14 1 1 5 3 2 6 23 11 11 6 2 Fast Attach 92 | 6 2 . 10 5 1 7 . 1 . . . . 2 . . 11 1 2 1 1 . 2 14 6 6 4 10 Attach 48 | 1 . . 7 3 2 4 . . . . . . 2 . . 3 1 1 1 2 . . 2 11 2 2 4 Detach 46 | . . . 1 2 7 6 . . . . . . 1 . . 6 2 1 1 1 . . 6 5 3 1 3 Swap 74 | . 6 . 7 14 4 4 . . 1 . . . 3 1 1 1 . 1 2 1 . 5 9 4 3 2 5 Drop 216 | . 9 . 5 8 14 34 . 7 2 . . 1 13 3 . 20 2 1 3 4 . 10 37 12 15 12 4 Fire 1217 | 5 42 7 63 23 19 82 6 13 10 4 . 9 69 8 14 53 19 38 45 24 6 42 167 83 111 163 92 Melee 68 | . . . 37 12 2 17 . . . . . . . . . . . . . . . . . . . . . Ram 1 | . . . . . . . . . . . . . . . . . . . . . 1 . . . . . . Kick 3 | . 1 . . . . . . . . . . . 1 . . . . . . . . . . . . 1 . Crush 1 | . . . . . . . . . . . . . . . . . . . 1 . . . . . . . . Escape Stasis 10 | . . . . . . 5 . . . . . . . . . . . . . . . . 5 . . . . Rewire . | . . . . . . . . . . . . . . . . . . . . . . . . . . . . Trap . | . . . . . . . . . . . . . . . . . . . . . . . . . . . . Miscellaneous . | . . . . . . . . . . . . . . . . . . . . . . . . . . . . Route ------- -11/Scrapyard -10/Materials (discovered 5 exits: [*Mat x3] / [*Min] / [*Sub]) -10/Subcaves -8/Materials -8/Storage (discovered 2 exits: [*Fac] / *Rec) -8/Recycling -6/Factory -6/Waste -6/Factory (discovered 2 exits: *Low x2) -6/Lower Caves -6/Lower Caves (discovered 2 exits: *Fac / *Dat) -6/Data Miner -5/Proximity Caves -5/Factory (discovered 2 exits: *Upp x2) -5/Upper Caves -5/Upper Caves (discovered 2 exits: [*Fac] / *War) -5/Warlord -4/Proximity Caves -4/Factory (discovered 3 exits: *Ext x2 / Arm) -4/Extension (discovered 2 exits: *Res / *Cet) -4/Cetus (discovered 2 exits: *Res / *Arc) -4/Archives (discovered 2 exits: *Hub x2) -4/Hub_04(d) (discovered 2 exits: *Res x2) -3/Research (discovered 3 exits: *Res x2 / *Tes) -3/Testing -2/Research (discovered 3 exits: *Acc / *Qua x2) -2/Quarantine (discovered 3 exits: *Acc / *Sec / *Frg) -2/Section 7 History --------- Turn | Location | Event 4 | -11/Scrapyard | Discovered new exit (range 15) 110 | -11/Scrapyard | Entered Materials 326 | -10/Materials | Build established: Mutant 430 | -10/Materials | Discovered new exit (range 12) 846 | -10/Materials | Discovered new exit (range 11) 1042 | -10/Materials | Discovered new exit (range 16) 1138 | -10/Materials | Discovered new exit (range 15) 1229 | -10/Materials | Discovered new exit (range 9) 1242 | -10/Materials | Entered Subcaves 1243 | -10/Subcaves | Approached by a straggling Scientist 1280 | -10/Subcaves | Learned location of Zion (-7) 1280 | -10/Subcaves | Met a Zionite searching for "candidates" 1306 | -10/Subcaves | Discovered new exit (range 14) 1492 | -10/Subcaves | Entered Materials 1492 | -8/Materials | Evolved 4 slots: Propulsion x1, Utility x2, Weapon x1 1493 | -8/Materials | Identified exit to Storage 1828 | -8/Materials | Build established: Gunner 2177 | -8/Materials | Garrison activated, responded to threat 2447 | -8/Materials | Core integrity fell below 50% 2473 | -8/Materials | Lost 6 parts (1p2n2u1w) 2620 | -8/Materials | Entered Storage 3046 | -8/Storage | Discovered new exit (range 12) 3211 | -8/Storage | Used back door to open Recycling access 3211 | -8/Storage | Discovered new exit (range 5) 3257 | -8/Storage | Entered Recycling 3559 | -8/Recycling | Discovered new exit (range 13) 3587 | -8/Recycling | Build established: Scavenger-Tank 3687 | -8/Recycling | Entered Scraplab 3700 | -8/Recycling | Found Prototype Device 3700 | -8/Recycling | Identified Scrap Engine 3963 | -8/Recycling | Build established: Scavenger-Mutant 4694 | -8/Recycling | Build established: Construct 4997 | -8/Recycling | Entered Factory 4997 | -6/Factory | Evolved 4 slots: Propulsion x1, Utility x3 5915 | -6/Factory | Garrison activated, responded to threat 6702 | -6/Factory | Spotted B-75 Beast 6853 | -6/Factory | Discovered new exit (range 4) 6897 | -6/Factory | Sucked down chute 6897 | -6/Factory | Entered Waste 6903 | -6/Waste | Spotted C-40 Crusher 6905 | -6/Waste | Spotted C-40 Crusher 6905 | -6/Waste | Spotted C-40 Crusher 6912 | -6/Waste | EMP discharged 6998 | -6/Waste | Spotted C-40 Crusher 6999 | -6/Waste | Spotted C-40 Crusher 7012 | -6/Waste | EMP discharged 7012 | -6/Waste | System corruption reached 10% 7018 | -6/Waste | Spotted C-40 Crusher 7044 | -6/Waste | Discovered new exit (range 10) 7054 | -6/Waste | Entered Factory 7229 | -6/Factory | Spotted B-75 Beast 7570 | -6/Factory | Found Hvy. Reactive Plating 7639 | -6/Factory | Discovered new exit (range 7) 7694 | -6/Factory | Identified exit to Lower Caves 7701 | -6/Factory | Entered Lower Caves 7939 | -6/Lower Caves | Found DCF Scrap (12 items) 8065 | -6/Lower Caves | Discovered new exit (range 10) 8078 | -6/Lower Caves | Learned 4 Factory zone layouts 8149 | -6/Lower Caves | Entered another Lower Caves area 8173 | -6/Lower Caves | Discovered new exit (range 15) 8384 | -6/Lower Caves | Discovered new exit (range 7) 8392 | -6/Lower Caves | Entered Data Miner 8392 | -6/Data Miner | Discovered new exit (range 6) 8411 | -6/Data Miner | Met Data Miner 8428 | -6/Data Miner | Learned location of Section 7 (-2) 8444 | -6/Data Miner | Received God Mode back door access code from Data Miner 8467 | -6/Data Miner | Entered Proximity Caves 8588 | -5/Proximity Caves | Attracted the attention of an 0b10 base 8622 | -5/Proximity Caves | Destroyed 7 combat bots 8676 | -5/Proximity Caves | Discovered new exit (range 14) 8690 | -5/Proximity Caves | Entered Factory 8690 | -5/Factory | Evolved 2 slots: Propulsion x1, Utility x1 8820 | -5/Factory | Destroyed 14 combat bots 9260 | -5/Factory | Repaired Lyr. Medium Armor Plating 9290 | -5/Factory | First assault squad dispatched 9347 | -5/Factory | Destroyed 8 combat bots 9482 | -5/Factory | Identified exit to Upper Caves 9591 | -5/Factory | Cargo convoy interrupted 9615 | -5/Factory | Entered Upper Caves 9667 | -5/Upper Caves | Encountered a Warlord checkpoint 9705 | -5/Upper Caves | Learned 4 Factory zone layouts 9715 | -5/Upper Caves | Spotted B-75 Beast 9728 | -5/Upper Caves | Destroyed B-75 Beast 9755 | -5/Upper Caves | Discovered new exit (range 11) 9766 | -5/Upper Caves | Entered another Upper Caves area 9855 | -5/Upper Caves | Discovered new exit (range 13) 9859 | -5/Upper Caves | Encountered a Warlord checkpoint 9879 | -5/Upper Caves | Spotted B-75 Beast 9897 | -5/Upper Caves | Destroyed B-75 Beast 10007 | -5/Upper Caves | Learned Factory stockpile data 10034 | -5/Upper Caves | Discovered new exit (range 8) 10045 | -5/Upper Caves | Learned Factory non-interactive machine intel 10050 | -5/Upper Caves | Entered Warlord 10084 | -5/Warlord | System corruption cleaned by Quarantine Array 10506 | -5/Warlord | Warlord's base attacked by MAIN.C 10509 | -5/Warlord | Learned location of Armory (-4) 10509 | -5/Warlord | Learned location of Testing (-3) 10510 | -5/Warlord | Learned 4 Armory zone layouts 10510 | -5/Warlord | Learned 4 Research zone layouts 10510 | -5/Warlord | Learned 4 Quarantine zone layouts 10512 | -5/Warlord | Learned Research security intel 10549 | -5/Warlord | Met Warlord 10709 | -5/Warlord | Found Prototype Processor 10709 | -5/Warlord | Identified Exp. Core Analyzer 10711 | -5/Warlord | Found Prototype Device 10711 | -5/Warlord | Identified Thermal Barrier 10716 | -5/Warlord | Found Prototype Hackware 10716 | -5/Warlord | Identified System Mapper 10856 | -5/Warlord | Warlord forces counterattacked 10976 | -5/Warlord | Spotted Striker 10992 | -5/Warlord | Build established: Hacker-Construct 10993 | -5/Warlord | Destroyed Executioner 11033 | -5/Warlord | Lost 4 allies 11075 | -5/Warlord | Opened side exit 11088 | -5/Warlord | Spotted Striker 11088 | -5/Warlord | Spotted Striker 11098 | -5/Warlord | Destroyed Striker 11103 | -5/Warlord | Destroyed Striker 11113 | -5/Warlord | Spotted Striker 11120 | -5/Warlord | Discovered new exit (range 14) 11140 | -5/Warlord | System corruption reached 10% 11151 | -5/Warlord | Destroyed Striker 11180 | -5/Warlord | Lost 6 parts (2p1n2u1w) 11181 | -5/Warlord | Warlord base infiltrated, sounded retreat 11259 | -5/Warlord | Spotted Executioner 11265 | -5/Warlord | Destroyed Executioner 11274 | -5/Warlord | Found Exp. Core Analyzer 11407 | -5/Warlord | Spotted B-75 Beast 11407 | -5/Warlord | Spotted B-86 Titan 11412 | -5/Warlord | Build established: Construct 11434 | -5/Warlord | Entered Proximity Caves 11450 | -4/Proximity Caves | Lost 4 allies 11497 | -4/Proximity Caves | Spotted B-86 Titan 11508 | -4/Proximity Caves | Destroyed B-86 Titan 11625 | -4/Proximity Caves | Spotter reported a threat 11642 | -4/Proximity Caves | Spotter reported a threat 11678 | -4/Proximity Caves | Spotter reported a threat 11695 | -4/Proximity Caves | Spotter reported a threat 11789 | -4/Proximity Caves | Spotter reported a threat 11826 | -4/Proximity Caves | Spotter reported a threat 11840 | -4/Proximity Caves | Learned Research terminal intel 11879 | -4/Proximity Caves | Spotter reported a threat 11966 | -4/Proximity Caves | Discovered new exit (range 7) 11975 | -4/Proximity Caves | Entered Factory 11975 | -4/Factory | Evolved 2 slots: Power x1, Utility x1 11976 | -4/Factory | Identified exit to Armory 11977 | -4/Factory | Identified exit to Extension 11979 | -4/Factory | Loaded intel: 198 non-interactive machine locations 12076 | -4/Factory | Destroyed B-86 Titan 12119 | -4/Factory | Destroyed 9 combat bots 12199 | -4/Factory | Destroyed 12 combat bots 12225 | -4/Factory | First assault squad dispatched 12250 | -4/Factory | Incoming assault squad redirected 12271 | -4/Factory | Discovered exit to Extension (range 9) 12283 | -4/Factory | Entered Extension 12332 | -4/Extension | Rescued a captive Derelict 12533 | -4/Extension | First assault squad dispatched 12552 | -4/Extension | Incoming assault squad redirected 12600 | -4/Extension | Rescued a captive Derelict 12601 | -4/Extension | Rescued a captive Derelict 12618 | -4/Extension | Rescued a captive Derelict 12619 | -4/Extension | Rescued a captive Derelict 12657 | -4/Extension | Spotted B-86 Titan 12683 | -4/Extension | Rescued a captive Derelict 12684 | -4/Extension | Rescued a captive Derelict 12704 | -4/Extension | Destroyed B-86 Titan 12716 | -4/Extension | Spotted B-86 Titan 12719 | -4/Extension | Destroyed B-86 Titan 12807 | -4/Extension | Incoming assault squad redirected 12910 | -4/Extension | Discovered new exit (range 15) 12910 | -4/Extension | Discovered new exit (range 15) 12921 | -4/Extension | Identified exit to Research 12937 | -4/Extension | Identified exit to Cetus 12948 | -4/Extension | Entered Cetus 12948 | -4/Cetus | Accompanied by 2 allies 12958 | -4/Cetus | Spotted Cetus Guard 12958 | -4/Cetus | Spotted Cetus Guard 12963 | -4/Cetus | Spotted Cetus Guard 12965 | -4/Cetus | Destroyed Cetus Guard 12965 | -4/Cetus | Spotted Cetus Guard 12969 | -4/Cetus | Destroyed Cetus Guard 12975 | -4/Cetus | Destroyed Cetus Guard 12980 | -4/Cetus | Allies destroyed Cetus Guard 13086 | -4/Cetus | Discovered new exit (range 15) 13099 | -4/Cetus | Spotted Cetus Guard 13099 | -4/Cetus | Spotted Cetus Guard 13101 | -4/Cetus | Destroyed Cetus Guard 13101 | -4/Cetus | Spotted Cetus Guard 13112 | -4/Cetus | Spotted Cetus Guard 13131 | -4/Cetus | Destroyed Cetus Guard 13133 | -4/Cetus | Destroyed Cetus Guard 13134 | -4/Cetus | Destroyed Cetus Guard 13145 | -4/Cetus | Discovered exit to Research (range 15) 13151 | -4/Cetus | Met Revision 17 13244 | -4/Cetus | Entered Archives 13244 | -4/Archives | Accompanied by 1 ally 13271 | -4/Archives | Unable to access archive contents 13283 | -4/Archives | Unable to access archive contents 13286 | -4/Archives | Discovered new exit (range 15) 13295 | -4/Archives | Discovered new exit (range 15) 13343 | -4/Archives | Entered Hub_04(d) 13347 | -4/Hub_04(d) | Discovered exit to Research (range 15) 13830 | -4/Hub_04(d) | Discovered exit to Research (range 5) 13909 | -4/Hub_04(d) | Network Hub disabled 13927 | -4/Hub_04(d) | Network Hub disabled 13928 | -4/Hub_04(d) | Spotted Lightning 13931 | -4/Hub_04(d) | Entered Research 13931 | -3/Research | Evolved 2 slots: Utility x1, Weapon x1 13934 | -3/Research | Loaded intel: 23 terminal locations 14131 | -3/Research | Revision forces began assault on 0b10 14132 | -3/Research | Met up with Revision 17++ 14239 | -3/Research | Spotted B-86 Titan 14239 | -3/Research | Destroyed B-86 Titan 14631 | -3/Research | Research terminal network offline 14667 | -3/Research | Build established: Scavenger-Construct 14918 | -3/Research | Spotted B-86 Titan 14933 | -3/Research | Destroyed B-86 Titan 15021 | -3/Research | Found Quantum Capacitor 15024 | -3/Research | Found Quantum Capacitor 15063 | -3/Research | Discovered new exit (range 11) 15069 | -3/Research | Identified exit to Research 15159 | -3/Research | Found Prototype Processor 15159 | -3/Research | Identified Exp. Melee Analysis Suite 15318 | -3/Research | Build established: Construct 15480 | -3/Research | Discovered exit to Research (range 12) 15769 | -3/Research | Found Exp. Core Analyzer 15771 | -3/Research | Found Exp. Core Analyzer 15833 | -3/Research | Found Powered Armor 15849 | -3/Research | Spotted Striker 15850 | -3/Research | Spotted Striker 15870 | -3/Research | Destroyed Striker 15883 | -3/Research | Destroyed Striker 15997 | -3/Research | Spotted Striker 16006 | -3/Research | Spotted Striker 16015 | -3/Research | Destroyed Striker 16038 | -3/Research | Destroyed Striker 16153 | -3/Research | Build established: Scavenger-Construct 16173 | -3/Research | Discovered new exit (range 11) 16182 | -3/Research | Entered Testing 16362 | -3/Testing | Spotted Striker 16398 | -3/Testing | Found Prototype Energy Gun 16398 | -3/Testing | Identified Warp Gun 16432 | -3/Testing | First assault squad dispatched 16475 | -3/Testing | Scanned by Researcher 16537 | -3/Testing | Spotted Striker 16539 | -3/Testing | Build established: Construct 16702 | -3/Testing | Incoming assault squad redirected 16790 | -3/Testing | Destroyed 15 combat bots 16810 | -3/Testing | Discovered exit to Research (range 8) 16828 | -3/Testing | Entered Research 16828 | -2/Research | Warlord forces began assault on 0b10 16828 | -2/Research | Evolved 2 slots: Utility x2 16938 | -2/Research | Research machine network offline 17048 | -2/Research | Discovered new exit (range 20) 17166 | -2/Research | Spotted Striker 17168 | -2/Research | Spotted Striker 17186 | -2/Research | Met up with Warlord 17199 | -2/Research | Discovered new exit (range 20) 17213 | -2/Research | Lost 3 allies 17261 | -2/Research | Borebot progress halted 17288 | -2/Research | Borebot progress halted 17372 | -2/Research | Spotted Executioner 17373 | -2/Research | Spotted Executioner 17374 | -2/Research | Destroyed Executioner 17389 | -2/Research | Found Prototype Processor 17389 | -2/Research | Identified Exp. Targeting Computer 17397 | -2/Research | Found Exp. Core Analyzer 17403 | -2/Research | Lost 3 allies 17407 | -2/Research | Found Prototype Device 17407 | -2/Research | Identified Adv. Kinecellerator 17443 | -2/Research | Spotted Striker 17443 | -2/Research | Spotted Striker 17448 | -2/Research | Destroyed Striker 17449 | -2/Research | Destroyed TR-DZI(D) 17454 | -2/Research | Destroyed Striker 17500 | -2/Research | Destroyed 8 combat bots 17557 | -2/Research | Discovered new exit (range 18) 17560 | -2/Research | Borebot progress halted 17579 | -2/Research | Identified exit to Access 17691 | -2/Research | Build established: Scavenger-Construct 17789 | -2/Research | Found Quantum Capacitor 18081 | -2/Research | Spotted Executioner 18092 | -2/Research | Spotted Executioner 18145 | -2/Research | Destroyed Executioner 18278 | -2/Research | Spotted Striker 18280 | -2/Research | Destroyed Striker 18332 | -2/Research | Given Cave Seal Controls access code 18336 | -2/Research | Spotted Striker 18343 | -2/Research | Destroyed Striker 18388 | -2/Research | Identified exit to Quarantine 18389 | -2/Research | Entered Quarantine 18390 | -2/Quarantine | Identified exit to Section 7 18390 | -2/Quarantine | Identified exit to Protoforge 18420 | -2/Quarantine | Discovered exit to Access (range 20) 18483 | -2/Quarantine | Found Alien Energy Cannon 18639 | -2/Quarantine | First assault squad dispatched 18648 | -2/Quarantine | Spotted Alpha 7 18673 | -2/Quarantine | Found Alien Launcher 18685 | -2/Quarantine | Destroyed Alpha 7 18695 | -2/Quarantine | Found Prototype Processor 18695 | -2/Quarantine | Identified Exp. Target Analyzer 18994 | -2/Quarantine | Destroyed 15 combat bots 19004 | -2/Quarantine | Build established: Construct 19105 | -2/Quarantine | Spotted Fortress 19212 | -2/Quarantine | Destroyed 10 combat bots 19228 | -2/Quarantine | Destroyed Fortress 19246 | -2/Quarantine | Found Prototype Device 19246 | -2/Quarantine | Identified Exp. EM Shield 19437 | -2/Quarantine | High security lockdown imminent 19476 | -2/Quarantine | Entered Section 7 19498 | -2/Section 7 | Found Exp. Signal Interpreter 19533 | -2/Section 7 | Found Alien Artifact 19533 | -2/Section 7 | Identified Spacefold Activator 19559 | -2/Section 7 | Build established: Scavenger-Construct 19602 | -2/Section 7 | Found Alien Artifact 19602 | -2/Section 7 | Identified Integrated Dissipator 19602 | -2/Section 7 | Installed Integrated Dissipator, increased core heat dissipation (+20) 19629 | -2/Section 7 | Found Alien Artifact 19629 | -2/Section 7 | Identified Integrated Mediator 19629 | -2/Section 7 | Installed Integrated Mediator, increased core attachment efficiency 19976 | -2/Section 7 | First assault squad dispatched 20274 | -2/Section 7 | Destroyed 9 combat bots 20281 | -2/Section 7 | High security lockdown imminent 20288 | -2/Section 7 | Spotted Alpha 7 20296 | -2/Section 7 | Scanned by Researcher 20297 | -2/Section 7 | Intercept squad dispatched 20302 | -2/Section 7 | Garrison activated, responded to threat 20304 | -2/Section 7 | Identified Sigix Terminator 20305 | -2/Section 7 | Fired Sigix Terminator 20305 | -2/Section 7 | Spotted Alpha 7 20307 | -2/Section 7 | Released all parts (10) 20308 | -2/Section 7 | Spotted Tracker 20308 | -2/Section 7 | Spotted Tracker 20309 | -2/Section 7 | Identified Core Cannon 20310 | -2/Section 7 | Core integrity fell below 50% 20318 | -2/Section 7 | Core integrity fell below 20% 20322 | -2/Section 7 | Destroyed by Alpha 7 with Heavy Quantum Rifle Last Messages --------------- 20309_ The unstable cave ceiling collapses. 20309_ Identified Core Cannon. 20309_ Penetrated by EMDS Slug. 20309_ Penetrated by Slug. 20310_ Slug penetrates H-88 Terminator. 20310_ Penetrated by Slug. 20311_ Acquired Centrium Leg. 20312_ Penetrated by EMDS Slug. 20312_ Penetrated by Slug. 20314_ Penetrated by EMDS Slug. 20316_ Penetrated by Slug. 20317_ Penetrated by EMDS Slug. 20317_ Extracted schematic archive: Exp. Focal Shield. 20317_ Extracted schematic archive: Exp. Q-thruster. 20319_ Penetrated by Slug. 20319_ Centrium Leg destroyed. 20322_ Slug penetrates K-01 Serf. 20322_ K-01 Serf destroyed. 20322_ Penetrated by Slug. [Achievement: Rambo] Map ----- +----------------------------------------------------+ | #????????????????????????????????????????????????? | | #????????????????????????????????????????????????? | | #????????????????????????????????????????????? | | ? T ????????????????????????????????????????? | | ??" ?????????????????????????????????????? | | ####### ?????????????????????????????????????? | | # ## ????????????????????????????????????????? | | # " ?????????????????????????????????????? | | " " ???????????????????????????????????? | | " " ?????????????????????????????? | | " " ; ?????????????????????? | | " " ; ???????????????????? | | " " ; ????????????????? | | " " """""""""" ; ??????????????? | | " """" ;;; ; ?????????????? | | " " ; ; ??????????????? | | " " ; ; "??????????????? | | " " ; ; "??????????????? | | " " ; ; """" ??????????? | | " " [ ; ; ???????????? | | " " *!! ;;; ; wh ?????????????? | | " "" [ [**; ; *%= "??????????????? | | " " = ! ; ;;; "??????????????? | | " " " ;;;$;;; ; ; ; """"???????????? | | $ s $$ c 7c ????????? | | $[ s @ ????????? | | = !!! $ u; ????????? | | !!!!! c ; ????????? | | !]!!# """;;;;;;;;;;;;;7; ?????????? | | !]# ;;; ?????????? | | ; ; ??????????? | | ; ; ??????????? | | ; ??????????? | | ; ; ???????????? | | ; ; """"""???????????? | | ; """"?????????????? | | ;;;;#####???????????????? | | ##???????????????????? | | #????????????????????? | | # " ##????????????????????? | | " ##??????????????????????? | | " ???????????????????????????? | | " #????????????????????????????? | | # " ####????????????????????????????? | | ##### """####???????????????????????????????? | | #???# ####??????????????????????????????????? | | """ #???# #?????????????????????????????????????? | | """ #####+####??????????????????????????????????? | | ??" # #??????????????????????????????????? | | """ # "" #??????????????????????????????????? | +----------------------------------------------------+ Best States ------------- Heat Dissipation 119 Energy Generation 61 Energy Capacity 700 Matter Stores 300 Matter Capacity 300 Sight Range 23 Robot Scan Range 16 Terrain Scan Density 210 Base Temperature (-) 200 Armor Coverage 1200 Resistance: KI 40 Resistance: TH 50 Resistance: EM 75 Propulsion Shielding 66 Weapon Shielding 90 Weapon Cycling 25 Evasion (%) 65 Targeting Accuracy 12 Core Analysis 12 Recoil Reduction 5 Particle Charging 25 Kinecelleration 50 Offensive Hacking 20 Defensive Hacking 12 Authchip Count 1 Item Schematics ----------------- Multireflex Exoskeleton | -6/Factory | Extracted Combat Drone Bay | -6/Data Miner | Free Lgt. Regenerative Plating | -6/Data Miner | Free Cld. Nuclear Pulse Thruster | -6/Data Miner | Free Imp. Thermal Defense Suite | -6/Data Miner | Free Imp. KE Penetrator | -6/Data Miner | Free Myomer Leg | -6/Data Miner | Free Adv. Coolant Injector | -6/Data Miner | Free Hyp. Mass Driver | -6/Data Miner | Free Neutrino Core | -6/Data Miner | Free Phase Gun | -6/Data Miner | Free Imp. Antigrav System | -6/Data Miner | Free Com. HERF Cannon | -6/Data Miner | Free Cmb. Antigrav System | -6/Data Miner | Free Centrium Heavy Armor Plating | -3/Testing | Archive Adv. Remote Shield | -3/Testing | Archive Exp. Signal Interpreter | -3/Testing | Archive Centrium Light Armor Plating | -3/Testing | Archive Exp. Heat Sink | -3/Testing | Archive Imp. Energy Well | -3/Testing | Archive Exp. Biometal Leg | -2/Quarantine | Archive Hvy. Gatling Laser | -2/Quarantine | Archive Adv. Plasma Rifle | -2/Quarantine | Archive Exp. Focal Shield | -2/Section 7 | Archive Exp. Q-thruster | -2/Section 7 | Archive Robot Schematics ------------------ M-22 Extractor | -6/Data Miner | Free L-41 Fighter | -6/Data Miner | Free G-50 Soldier | -6/Data Miner | Free A-15 Conveyor | -6/Data Miner | Free E-15 Imp | -3/Testing | Archive M-36 Artificer | -3/Testing | Archive B-60 Warrior | -3/Testing | Archive M-30 Cleanser | -3/Testing | Archive A-27 Freighter | -2/Quarantine | Archive B-74 Champion | -2/Quarantine | Archive Fabricated ------------ Nothing Repaired ---------- Lyr. Medium Armor Plating | 34% | -5/Factory Studied --------- None Alien Tech Used ----------------- Spacefold Activator Integrated Dissipator Integrated Mediator Sigix Terminator Core Cannon Achievements -------------- Betrayal Most Foul Bigger Is Better Cannon Specialist Coming In Hot Equal Opportunity Bot Hard Hitter I Have Friends Everywhere Protector Rambo Revolutionary Research Signature Confirmed Tailor-made Challenges ------------ None Game ------ Seed InertialTripodWand Manual? 0 Play Time 05:23:07 Cumulative 120.7 hours Start 2026.01.29 @ 00:14:42 End 2026.01.30 @ 00:39:07 Sessions 4 Manual Loads 0 Difficulty Rogue Special Mode None Game No. 52 Rogue 52 Adventurer 0 Explorer 0 Win Type - Total 6 Types 5/0/1/0/0/0/0/0/0/0 Lore% 56 Gallery% 60 Achievement% 53 Wizard Run 0 Options --------- Layout 0 ASCII 0 Keyboard 1 Movement Arrows Keybinds 0 Fullscreen 1 Font 18/SmallcapsGlow Map View 76x50 Zoom Use 0% Tactical HUD 1 Map Filters NONE Filters NONE Steam 1 RUN: 7af6d0d0-d095-40a4-b3cd-98a384b11191